bitfinex-derivatives/quotes_SOLF0:USTF0_20260316
["timestamp","ask_amount","ask_price","bid_price","bid_amount"]
[1773675865874,3.64307973,93.75,93.708,33.56]
[1773675866072,6.58485063,93.749,93.708,33.56]
[1773675867971,3.64307973,93.74,93.683,33.56]
[1773675868172,3.64307973,93.73,93.676,33.56]
[1773675868373,3.64307973,93.73,93.677,10.20028193]
[1773675869871,3.64307973,93.74,93.677,10.20028193]
[1773675871466,3.64307973,93.73,93.677,10.20028193]
[1773675872978,3.64244369,93.74,93.677,10.20028193]
[1773675875079,3.64244369,93.74,93.671,33.56]
[1773675875080,3.64244369,93.74,93.681,10.18443695]
[1773675879584,3.64244369,93.73,93.681,10.18443695]
[1773675881185,3.64244369,93.72,93.67,10.14329494]
[1773675881683,3.64244369,93.71,93.67,10.14329494]
[1773675882492,3.64244369,93.72,93.67,10.14329494]
[1773675886689,3.64244369,93.73,93.67,10.14329494]
[1773675886893,3.64244369,93.74,93.681,10.10477329]
[1773675896300,3.64244369,93.72,93.666,10.02232404]
[1773675897007,52.774,93.762,93.666,10.02232404]
[1773675897008,3.64244369,93.71,93.666,10.02232404]
[1773675897907,3.64244369,93.7,93.651,10.03009757]
[1773675899005,3.64244369,93.69,93.651,10.03009757]
[1773675899207,3.64244369,93.69,93.639,10.04180027]
[1773675899408,3.64244369,93.7,93.639,10.04180027]
[1773675899609,3.64244369,93.69,93.639,10.04180027]
[1773675900306,3.64244369,93.7,93.639,10.04180027]
[1773675900499,3.64244369,93.7,93.641,10.11947632]
[1773675900703,3.64244369,93.73,93.67,3.64244369]
[1773675900902,8.02566242,93.735,93.671,10.11947632]
[1773675901104,3.64244369,93.74,93.681,10.11947632]
[1773675901907,8.02566242,93.751,93.691,10.12702965]
[1773675902108,8.02566242,93.751,93.642,32.0]
[1773675902109,33.58,93.769,93.741,10.12702965]
[1773675902313,3.64244369,93.82,93.76,3.64244369]
[1773675902606,3.64244369,93.82,93.76,13.75211368]
[1773675902806,8.00927543,93.833,93.77,3.64244369]
[1773675903012,3.64244369,93.84,93.771,10.10966999]
[1773675903211,3.64244369,93.83,93.771,10.10966999]
[1773675903812,3.64244369,93.83,93.77,3.64244369]
[1773675903813,3.64244369,93.81,93.753,10.10786002]
[1773675904015,3.64244369,93.81,93.653,10.66]
[1773675904016,3.64244369,93.78,93.721,10.10786002]
[1773675904311,3.64244369,93.77,93.704,10.10786002]
[1773675904514,3.64244369,93.76,93.704,10.10786002]
[1773675904714,3.64244369,93.78,93.72,3.64244369]
[1773675904916,3.64244369,93.78,93.721,10.16519087]
[1773675905114,3.64244369,93.76,93.702,10.16519087]
[1773675905817,3.64244369,93.78,93.711,10.09741975]
[1773675906216,3.64244369,93.78,93.721,10.09741975]
[1773675906614,7.99346012,93.813,93.73,3.64244369]
[1773675906820,32.0,93.819,93.731,10.13302838]
[1773675907020,32.0,93.817,93.731,10.13302838]
[1773675907212,32.0,93.816,93.731,10.13302838]
[1773675908220,42.22147144,93.82,93.731,10.13302838]
[1773675908221,32.0,93.814,93.731,10.13302838]
[1773675908415,33.56,93.815,93.731,10.13302838]
[1773675911122,32.0,93.839,93.731,10.13302838]
[1773675911315,312.68767263,93.851,93.71,8.66147144]
[1773675911316,32.0,93.837,93.761,10.08617937]
[1773675911515,312.68767263,93.851,93.761,10.08617937]
[1773675912925,312.68767263,93.851,93.763,10.13454045]
[1773675915625,8.66147144,93.84,93.763,10.13454045]
[1773675915824,8.66147144,93.84,93.735,10.21034886]
[1773675915825,32.0,93.839,93.735,10.21034886]
[1773675916024,8.66147144,93.82,93.735,10.21034886]
[1773675916922,32.0,93.818,93.735,10.21034886]
[1773675918021,65.56,93.817,93.735,10.21034886]
[1773675919320,65.56,93.817,93.7,8.66147144]
[1773675919524,65.56,93.817,93.701,10.22598423]
[1773675919718,32.0,93.819,93.701,10.22598423]
[1773675919922,32.0,93.817,93.703,10.26416339]
[1773675924028,32.0,93.799,93.703,10.26416339]
[1773675924927,8.66147144,93.8,93.703,10.26416339]
[1773675925426,32.0,93.817,93.703,10.26416339]
[1773675929430,32.0,93.817,93.705,10.3159568]
[1773675930630,33.56,93.816,93.705,10.3159568]
[1773675930935,32.0,93.815,93.705,10.3159568]
[1773675931138,8.66147144,93.8,93.705,10.3159568]
[1773675931639,32.0,93.799,93.705,10.3159568]
[1773675937236,32.0,93.797,93.705,10.3159568]
[1773675937633,32.0,93.795,93.705,10.3159568]
[1773675938638,32.0,93.793,93.705,10.3159568]
[1773675945243,32.0,93.793,93.707,10.33858191]
[1773675945645,32.0,93.792,93.707,10.33858191]
[1773675945841,33.58,93.791,93.709,10.34463999]
[1773675946441,19.183,93.818,93.709,10.34463999]
[1773675946442,32.0,93.802,93.709,10.34463999]
[1773675946641,32.0,93.802,93.703,13.11131686]
[1773675946642,33.58,93.801,93.711,10.35149938]
[1773675947741,32.0,93.822,93.721,10.35417755]
[1773675947947,33.58,93.824,93.727,10.35417755]
[1773675948149,33.58,93.824,93.741,10.35417755]
[1773675948447,33.58,93.838,93.741,10.35417755]
[1773675948848,33.58,93.838,93.771,10.35662232]
[1773675949044,33.58,93.838,93.773,10.35662232]
[1773675949250,3.63470769,93.83,93.773,10.35662232]
[1773675949746,3.63470769,93.82,93.773,10.35662232]
[1773675950146,3.63470769,93.83,93.773,10.35662232]
[1773675953957,3.63470769,93.84,93.781,10.54704912]
[1773675954157,33.56,93.848,93.782,10.54704912]
[1773675955053,3.63470769,93.84,93.782,10.54704912]
[1773675955856,33.56,93.848,93.782,10.54704912]
[1773675956156,33.56,93.848,93.791,10.54436416]
[1773675957850,3.63470769,93.86,93.801,10.51512208]
[1773675963257,3.63470769,93.85,93.801,10.51512208]
[1773675965060,3.63470769,93.86,93.801,10.51512208]
[1773675966563,33.56,93.875,93.801,10.51512208]
[1773675966564,3.63470769,93.85,93.801,10.51512208]
[1773675967466,3.63470769,93.86,93.801,10.51512208]
[1773675967667,0.17585649,93.86,93.801,10.51512208]
[1773675968762,3.63470769,93.84,93.801,10.51512208]
[1773675968956,3.63470769,93.84,93.751,32.0]
[1773675968957,3.63470769,93.83,93.787,10.55615593]
[1773675969859,3.63470769,93.84,93.787,10.55615593]
[1773675971370,32.0,93.874,93.791,10.5346094]
[1773675971371,3.63470769,93.85,93.791,10.5346094]
[1773675971562,3.63470769,93.84,93.791,10.5346094]
[1773675974374,3.63470769,93.83,93.791,10.5346094]
[1773675976077,3.63470769,93.82,93.774,10.63103254]
[1773675976670,19.177,93.845,93.774,10.63103254]
[1773675976871,3.63470769,93.81,93.774,10.63103254]
[1773675977075,3.63470769,93.82,93.774,10.63103254]
[1773675977773,3.63470769,93.83,93.774,10.63103254]
[1773675977976,3.63470769,93.82,93.774,10.63103254]
[1773675982077,3.63470769,93.83,93.774,10.63103254]
[1773675982578,3.63470769,93.82,93.774,10.63103254]
[1773675985777,3.63470769,93.81,93.774,10.63103254]
[1773675987983,3.63470769,93.83,93.774,10.63103254]
[1773675989080,3.63470769,93.82,93.774,10.63103254]
[1773675994881,3.63606845,93.82,93.774,10.63103254]
[1773675996284,3.63606845,93.83,93.774,10.63103254]
[1773675996783,3.63606845,93.82,93.774,10.63103254]
[1773676002386,32.0,93.844,93.774,10.63103254]
[1773676002686,3.63606845,93.82,93.774,10.63103254]
[1773676003189,3.63606845,93.83,93.774,10.63103254]
[1773676003788,19.177,93.847,93.774,10.63103254]
[1773676003789,3.63606845,93.82,93.774,10.63103254]
[1773676005888,3.63606845,93.81,93.774,10.63103254]
[1773676006088,3.63606845,93.8,93.759,10.57777882]
[1773676007990,3.63606845,93.79,93.759,10.57777882]
[1773676008890,3.63606845,93.81,93.759,10.57777882]
[1773676009291,3.63606845,93.8,93.759,10.57777882]
[1773676009489,3.63606845,93.81,93.759,10.57777882]
[1773676010391,3.63606845,93.8,93.759,10.57777882]
[1773676010792,3.63606845,93.79,93.759,10.57777882]
[1773676014488,3.63606845,93.79,93.738,33.56]
[1773676014794,3.63606845,93.76,93.724,10.55838504]
[1773676015997,3.63606845,93.75,93.724,10.55838504]
[1773676016198,3.63606845,93.73,93.7,10.55820134]
[1773676016898,3.63606845,93.74,93.7,10.55820134]
[1773676020201,8.03318491,93.765,93.7,10.55820134]
[1773676020505,3.63606845,93.74,93.7,10.55820134]
[1773676021204,40.02313732,93.766,93.7,10.55820134]
[1773676021404,3.63606845,93.77,93.711,8.85340795]
[1773676021706,3.63606845,93.8,93.741,8.85193934]
[1773676021906,10.66,93.899,93.741,8.85193934]
[1773676021907,3.63606845,93.81,93.741,8.85193934]
[1773676022108,3.63606845,93.8,93.741,8.85193934]
[1773676022308,3.63606845,93.79,93.741,8.85193934]
[1773676022508,3.63606845,93.78,93.741,8.85193934]
[1773676022910,3.63606845,93.79,93.741,8.85193934]
[1773676023506,3.63606845,93.77,93.726,8.97134384]
[1773676024111,3.63606845,93.78,93.726,8.97134384]
[1773676026214,3.63606845,93.8,93.741,9.05916463]
[1773676028116,3.63606845,93.82,93.76,3.63606845]
[1773676028316,3.63606845,93.82,93.761,9.0043805]
[1773676028610,3.63606845,93.81,93.761,9.0043805]
[1773676030009,3.63606845,93.8,93.741,9.02380536]
[1773676030408,3.63606845,93.81,93.741,9.02380536]
[1773676031518,3.63606845,93.8,93.741,9.02380536]
[1773676032016,3.63606845,93.81,93.741,9.02380536]
[1773676032418,35.63606845,93.83,93.771,9.02556208]
[1773676032612,3.63606845,93.82,93.771,9.02556208]
[1773676034227,3.63606845,93.81,93.771,9.02556208]
[1773676034726,3.63606845,93.81,93.751,9.02670601]
[1773676035424,3.63606845,93.8,93.751,9.02670601]
[1773676036226,3.63606845,93.79,93.751,9.02670601]
[1773676036627,3.63606845,93.78,93.734,9.01417501]
[1773676036824,3.63606845,93.79,93.734,9.01417501]
[1773676039121,3.63606845,93.8,93.741,9.00172352]
[1773676039326,32.0,93.832,93.741,9.00172352]
[1773676039622,3.63606845,93.8,93.741,9.00172352]
[1773676040221,3.63606845,93.82,93.751,9.00184986]
[1773676040625,3.63606845,93.84,93.78,3.63606845]
[1773676040824,3.63606845,93.84,93.771,9.01055349]
[1773676040825,3.63606845,93.85,93.746,19.197]
[1773676041022,3.63606845,93.85,93.791,9.01055349]
[1773676041626,3.63606845,93.86,93.801,9.07113193]
[1773676041816,3.63606845,93.87,93.811,9.07113193]
[1773676042825,312.23793634,93.885,93.811,9.07113193]
[1773676051628,8.64826458,93.93,93.811,9.07113193]
[1773676051834,8.64826458,93.93,93.8,8.64826458]
[1773676051835,33.56,93.929,93.813,8.91019545]
[1773676052034,8.64826458,93.93,93.821,8.91019545]
[1773676052228,8.64826458,93.93,93.823,8.91019545]
[1773676054833,8.64430234,93.91,93.823,8.91019545]
[1773676056842,32.0,93.909,93.823,8.91019545]
[1773676061537,8.64430234,93.89,93.823,8.91019545]
[1773676062043,42.18430234,93.89,93.823,8.91019545]
[1773676062441,32.0,93.889,93.823,8.91019545]
[1773676062736,3.63265711,93.86,93.823,8.91019545]
[1773676064539,33.54,93.89,93.823,8.91019545]
[1773676064743,3.63265711,93.87,93.823,8.91019545]
[1773676065745,3.63265711,93.88,93.823,8.91019545]
[1773676066747,3.63265711,93.87,93.823,8.91019545]
[1773676067248,3.63265711,93.88,93.823,8.91019545]
[1773676068643,3.63265711,93.87,93.823,8.91019545]
[1773676070942,6.74681232,93.919,93.861,0.5141698]
[1773676071452,3.63265711,93.91,93.861,0.5141698]
[1773676072851,6.74681232,93.919,93.861,0.5141698]
[1773676073752,6.74681232,93.919,93.835,1.12961309]
[1773676076858,6.80808701,93.899,93.82,0.59361982]
[1773676078065,33.54,93.898,93.782,0.03970669]
[1773676078263,6.80808701,93.897,93.782,0.03970669]
[1773676078563,6.80808701,93.896,93.782,0.03970669]
[1773676079064,6.80808701,93.896,93.79,8.64020735]
[1773676083066,6.80808701,93.896,93.77,8.64020735]
[1773676084869,6.80808701,93.859,93.733,19.2]
[1773676085476,6.80808701,93.859,93.73,8.64020735]
[1773676086173,6.80808701,93.859,93.707,19.205]
[1773676086174,6.80808701,93.839,93.72,8.64020735]
[1773676086373,6.80808701,93.839,93.707,19.205]
[1773676086374,6.80808701,93.839,93.74,8.64020735]
[1773676091183,6.80808701,93.839,93.722,33.54]
[1773676091579,6.80808701,93.819,93.707,19.205]
[1773676091783,6.80808701,93.819,93.729,33.56]
[1773676092781,6.80808701,93.799,93.74,3.63753688]
[1773676094882,6.80808701,93.799,93.729,33.56]
[1773676096481,6.80808701,93.799,93.7,8.66084636]
[1773676096683,6.80808701,93.799,93.701,33.56]
[1773676099689,6.80808701,93.799,93.702,19.206]
[1773676100984,6.80808701,93.799,93.703,33.58]
[1773676107387,6.80808701,93.799,93.72,8.66084636]
[1773676107587,6.80808701,93.799,93.721,33.58]
[1773676109093,6.80808701,93.799,93.707,33.58]
[1773676109789,6.80808701,93.799,93.708,33.58]
[1773676111190,6.80808701,93.799,93.68,27.87184636]
[1773676111382,6.80808701,93.799,93.681,33.58]
[1773676111584,6.41883005,93.789,93.66,8.66084636]
[1773676111784,6.41883005,93.789,93.68,8.66084636]
[1773676113196,6.41883005,93.789,93.686,19.21]
[1773676114091,6.41883005,93.789,93.7,8.66084636]
[1773676114285,6.41883005,93.789,93.701,33.58]
[1773676125809,6.41883005,93.789,93.703,19.206]
[1773676127213,6.41883005,93.789,93.711,19.204]
[1773676129408,6.41883005,93.789,93.712,33.58]
[1773676129609,6.41883005,93.789,93.67,8.66456532]
[1773676129814,8.66456532,93.8,93.67,8.66456532]
[1773676129815,6.42098219,93.787,93.677,33.58]
[1773676130312,6.42098219,93.785,93.677,33.58]
[1773676132511,6.4155588,93.779,93.677,33.58]
[1773676132712,8.66456532,93.78,93.677,33.58]
[1773676132713,6.41557782,93.777,93.677,33.58]
[1773676132918,6.41557782,93.776,93.677,33.58]
[1773676138932,6.41569655,93.749,93.7,3.64135145]
[1773676139528,6.41569655,93.749,93.69,3.64135145]
[1773676139733,6.41569655,93.749,93.7,3.64135145]
[1773676140130,6.41569655,93.749,93.69,3.64135145]
[1773676141132,6.41569655,93.749,93.672,465.82143547]
[1773676141336,6.40247881,93.739,93.68,3.64135145]
[1773676142337,6.40247881,93.739,93.681,33.58]
[1773676142533,6.40247881,93.739,93.69,3.64135145]
[1773676143843,6.41537325,93.759,93.7,3.64135145]
[1773676144037,6.41537325,93.739,93.692,33.58]
[1773676152446,6.3973064,93.729,93.672,446.0994345]
[1773676152646,9.89854119,93.782,93.633,58.23915254]
[1773676152647,6.39839276,93.719,93.676,2.19451712]
[1773676152948,43.47854119,93.75,93.645,9.29434867]
[1773676153144,43.47854119,93.75,93.622,33.58]
[1773676153145,3.64135145,93.71,93.651,9.29434867]
[1773676156845,3.64135145,93.7,93.651,9.29434867]
[1773676157049,19.199,93.739,93.651,9.29434867]
[1773676157050,3.64135145,93.69,93.651,9.29434867]
[1773676157350,3.64135145,93.69,93.64,3.64135145]
[1773676157649,3.64135145,93.69,93.639,9.28856596]
[1773676158649,3.64135145,93.7,93.639,9.28856596]
[1773676159443,3.64135145,93.71,93.65,3.64135145]
[1773676159643,3.64135145,93.71,93.651,9.25900494]
[1773676160246,7.98067578,93.756,93.67,3.64135145]
[1773676160247,3.64135145,93.73,93.67,3.64135145]
[1773676160444,3.64135145,93.73,93.671,9.25900494]
[1773676161254,3.64135145,93.74,93.671,9.25900494]
[1773676164552,3.64135145,93.73,93.671,9.25900494]
[1773676173655,7.98067578,93.77,93.681,9.28709682]
[1773676173656,3.64135145,93.74,93.681,9.28709682]
[1773676174055,3.64135145,93.73,93.681,9.28709682]
[1773676174361,3.64135145,93.72,93.681,9.28709682]
[1773676177357,3.64135145,93.7,93.661,9.27350363]
[1773676178859,3.64509028,93.71,93.661,9.27350363]
[1773676180056,3.64509028,93.7,93.661,9.27350363]
[1773676181055,3.64509028,93.7,93.647,9.26872907]
[1773676181255,3.64509028,93.68,93.633,9.26872907]
[1773676181655,3.64509028,93.67,93.633,9.26872907]
[1773676181860,3.64509028,93.66,93.611,9.26875557]
[1773676182050,3.64509028,93.66,93.522,33.18739708]
[1773676182051,3.64509028,93.64,93.597,9.26875557]
[1773676183456,3.64509028,93.65,93.597,9.26875557]
[1773676183958,3.64509028,93.66,93.597,9.26875557]
[1773676184157,3.64509028,93.66,93.571,1.85843827]
[1773676184158,7.98067578,93.695,93.601,9.28192008]
[1773676184359,7.98067578,93.695,93.571,1.85843827]
[1773676184360,3.64509028,93.67,93.611,9.28192008]
[1773676185260,3.64509028,93.66,93.611,9.28192008]
[1773676187058,7.98067578,93.706,93.621,9.24395749]
[1773676187059,3.64509028,93.68,93.621,9.24395749]
[1773676187956,3.64509028,93.69,93.631,9.24387672]
[1773676190262,3.64509028,93.71,93.65,3.64509028]
[1773676190457,3.64509028,93.71,93.651,9.23505823]
[1773676191661,3.64509028,93.72,93.66,3.64509028]
[1773676191964,3.64509028,93.74,93.671,9.23921096]
[1773676192463,3.64509028,93.73,93.671,9.23921096]
[1773676193560,3.64509028,93.74,93.671,9.23921096]
[1773676193761,3.64509028,93.72,93.671,9.23921096]
[1773676194066,9.89854119,93.773,93.655,9.2430292]
[1773676194067,3.64509028,93.69,93.655,9.2430292]
[1773676194462,3.64509028,93.7,93.655,9.2430292]
[1773676197767,3.64509028,93.69,93.64,9.23722387]
[1773676198460,3.64509028,93.7,93.64,9.23722387]
[1773676199060,8.00666991,93.728,93.64,9.23722387]
[1773676199266,3.64509028,93.7,93.641,9.2376229]
[1773676200875,3.64509028,93.69,93.641,9.2376229]
[1773676201368,3.64509028,93.7,93.641,9.2376229]
[1773676201869,3.64509028,93.71,93.65,3.64509028]
[1773676202168,3.64509028,93.72,93.661,9.24648811]
[1773676202368,3.64509028,93.73,93.661,9.24648811]
[1773676202667,3.64509028,93.71,93.661,9.24648811]
[1773676203677,3.64509028,93.71,93.617,33.58]
[1773676203678,3.64509028,93.7,93.646,9.24658107]
[1773676203866,3.64509028,93.69,93.646,9.24658107]
[1773676204063,3.64509028,93.68,93.63,9.21198153]
[1773676204268,3.64509028,93.67,93.63,9.21198153]
[1773676204669,3.64509028,93.67,93.572,19.233]
[1773676204670,3.64509028,93.67,93.611,9.20449114]
[1773676205473,3.64509028,93.66,93.611,9.20449114]
[1773676206369,3.64509028,93.65,93.595,9.20173462]
[1773676206767,19.212,93.676,93.578,9.20079281]
[1773676206968,3.64509028,93.63,93.578,9.20079281]
[1773676207774,3.64509028,93.64,93.581,9.2037102]
[1773676208368,3.64509028,93.65,93.591,9.2037102]
[1773676209375,3.64509028,93.66,93.591,9.2037102]
[1773676210081,3.64509028,93.65,93.591,9.2037102]
[1773676214781,3.64509028,93.64,93.591,9.2037102]
[1773676215178,8.00666991,93.682,93.561,9.19242352]
[1773676215179,3.64509028,93.62,93.561,9.19242352]
[1773676215875,3.64509028,93.6,93.541,9.19282417]
[1773676216075,3.64509028,93.59,93.541,9.19282417]
[1773676216280,3.64509028,93.6,93.541,9.19282417]
[1773676216480,3.64509028,93.59,93.541,9.19282417]
[1773676216675,8.0018976,93.636,93.541,9.19282417]
[1773676216885,3.64509028,93.61,93.55,3.64509028]
[1773676217181,3.64509028,93.61,93.551,9.19192171]
[1773676218481,3.64509028,93.59,93.551,9.19192171]
[1773676218675,3.64509028,93.6,93.551,9.19192171]
[1773676219183,3.64509028,93.59,93.551,9.19192171]
[1773676220082,3.64509028,93.58,93.54,12.07297675]
[1773676220276,3.64509028,93.57,93.54,12.07297675]
[1773676220475,52.804,93.615,93.493,33.58]
[1773676220687,9.91350409,93.607,93.481,15.1365599]
[1773676220874,3.64509028,93.54,93.481,15.1365599]
[1773676221076,3.64509028,93.55,93.49,3.64509028]
[1773676221276,3.64509028,93.55,93.491,15.1365599]
[1773676221480,3.64509028,93.54,93.491,15.1365599]
[1773676222383,3.64509028,93.51,93.472,15.14427096]
[1773676222585,3.64509028,93.52,93.472,15.14427096]
[1773676222779,8.71274166,93.55,93.472,15.14427096]
[1773676223278,8.71274166,93.57,93.472,15.14427096]
[1773676224984,8.71274166,93.59,93.472,15.14427096]
[1773676225381,8.71274166,93.59,93.474,15.1540662]
[1773676225980,8.71274166,93.59,93.481,15.15799336]
[1773676226175,8.71274166,93.59,93.483,15.15799336]
[1773676228484,8.71274166,93.57,93.483,15.15799336]
[1773676229291,8.71274166,93.54,93.456,15.15092893]
[1773676233588,8.71274166,93.52,93.437,15.08213111]
[1773676234096,8.71274166,93.54,93.437,15.08213111]
[1773676235693,8.71274166,93.54,93.441,15.12888157]
[1773676236595,8.71274166,93.52,93.441,15.12888157]
[1773676237104,106.823,93.599,93.411,1.86170426]
[1773676237105,8.71274166,93.5,93.411,1.86170426]
[1773676237292,8.71274166,93.48,93.412,15.07843928]
[1773676237492,33.6,93.499,93.412,15.07843928]
[1773676239501,8.71274166,93.5,93.412,15.07843928]
[1773676240405,8.71274166,93.52,93.412,15.07843928]
[1773676240607,8.71274166,93.49,93.412,15.07843928]
[1773676240802,33.6,93.497,93.412,15.07843928]
[1773676240999,8.72105877,93.5,93.412,15.07843928]
[1773676241305,33.6,93.502,93.412,15.07843928]
[1773676241699,8.72105877,93.5,93.412,15.07843928]
[1773676242006,8.72105877,93.48,93.412,15.07843928]
[1773676243201,8.72105877,93.48,93.372,15.01908005]
[1773676244804,8.72105877,93.5,93.372,15.01908005]
[1773676245106,8.72105877,93.5,93.391,14.9551947]
[1773676245308,33.6,93.507,93.391,14.9551947]
[1773676245699,33.6,93.507,93.411,14.95346768]
[1773676245899,33.6,93.533,93.411,14.95346768]
[1773676246103,33.6,93.551,93.431,14.95346768]
[1773676246708,33.6,93.551,93.451,14.95213316]
[1773676247310,8.72105877,93.56,93.451,14.95213316]
[1773676247502,42.32105877,93.56,93.451,14.95213316]
[1773676247900,33.6,93.56,93.451,14.95213316]
[1773676248101,33.6,93.59,93.471,14.94364967]
[1773676248302,8.72105877,93.6,93.44,42.32105877]
[1773676248303,33.6,93.595,93.441,14.94364967]
[1773676248505,8.72105877,93.55,93.441,14.94364967]
[1773676251412,8.72105877,93.53,93.441,14.94364967]
[1773676253215,33.6,93.543,93.441,14.94364967]
[1773676253414,19.235,93.566,93.441,14.94364967]
[1773676253616,8.72105877,93.56,93.441,14.94364967]
[1773676254212,8.72105877,93.54,93.441,14.94364967]
[1773676258018,8.72105877,93.52,93.441,14.94364967]
[1773676259716,19.24,93.539,93.441,14.94364967]
[1773676260621,8.72105877,93.52,93.441,14.94364967]
[1773676260816,8.72105877,93.5,93.381,14.87745142]
[1773676261012,42.32105877,93.5,93.382,14.87745142]
[1773676263315,8.72105877,93.48,93.382,14.87745142]
[1773676264725,8.49155578,93.485,93.382,14.87745142]
[1773676265025,33.6,93.486,93.382,14.87745142]
[1773676265523,8.72105877,93.48,93.382,14.87745142]
[1773676265728,3.90239691,93.522,93.41,8.72105877]
[1773676265924,6.18020731,93.509,93.39,8.72105877]
[1773676266320,6.18020731,93.489,93.375,33.6]
[1773676266924,6.18020731,93.489,93.376,33.6]
[1773676267523,6.18020731,93.489,93.37,8.72105877]
[1773676268527,6.13989585,93.487,93.37,8.72105877]
[1773676268930,6.13989585,93.487,93.372,33.6]
[1773676269222,6.13635637,93.469,93.35,8.72105877]
[1773676269427,6.13635637,93.469,93.357,33.6]
[1773676270429,6.13635637,93.469,93.361,1.86287525]
[1773676272031,6.13635637,93.469,93.39,8.72105877]
[1773676272226,6.13811143,93.495,93.39,8.72105877]
[1773676273029,6.13811143,93.495,93.41,8.72105877]
[1773676273224,6.13811143,93.495,93.411,33.6]
[1773676273428,6.13811143,93.495,93.41,8.72105877]
[1773676273623,6.13811143,93.495,93.411,33.6]
[1773676274220,6.13811143,93.495,93.361,1.86287525]
[1773676274221,6.14779507,93.519,93.43,8.72105877]
[1773676274425,6.14779507,93.519,93.431,33.6]
[1773676275832,6.14779507,93.519,93.44,8.72105877]
[1773676276033,6.14779507,93.519,93.431,33.6]
[1773676277731,6.14779507,93.519,93.42,8.72105877]
[1773676277935,6.15419852,93.517,93.407,33.6]
[1773676278135,6.15419852,93.517,93.42,8.72105877]
[1773676278928,6.15419852,93.517,93.404,33.6]
[1773676278929,6.15419852,93.517,93.44,8.72105877]
[1773676279528,6.15419852,93.517,93.441,33.6]
[1773676282032,6.15419852,93.517,93.44,8.72105877]
[1773676282231,6.15419852,93.517,93.426,33.6]
[1773676282735,6.15419852,93.517,93.415,33.6]
[1773676282935,6.15419852,93.517,93.402,19.62711032]
[1773676283136,6.15419852,93.517,93.403,33.6]
[1773676283337,6.15419852,93.517,93.403,53.22711032]
[1773676284536,6.15419852,93.517,93.404,33.6]
[1773676288541,6.15419852,93.517,93.42,8.72105877]
[1773676288842,6.15419852,93.517,93.404,53.22711032]
[1773676288843,6.15419852,93.517,93.44,8.72105877]
[1773676289346,6.15419852,93.517,93.41,28.34816909]
[1773676289547,6.15419852,93.517,93.41,8.72105877]
[1773676290342,6.20000626,93.515,93.41,8.72105877]
[1773676290543,6.20000626,93.515,93.392,19.27]
[1773676290544,6.20000626,93.509,93.392,19.27]
[1773676290845,6.19905304,93.507,93.393,33.6]
[1773676291040,6.19905304,93.506,93.393,33.6]
[1773676295543,6.19905304,93.506,93.41,8.72105877]
[1773676295746,6.19905304,93.506,93.401,19.62711032]
[1773676295947,6.19905304,93.506,93.402,33.6]
[1773676296647,6.18634128,93.504,93.39,19.62711032]
[1773676296845,6.18634128,93.489,93.388,33.6]
[1773676297046,6.18634128,93.489,93.381,33.6]
[1773676299350,6.1780335,93.469,93.37,33.6]
[1773676299755,6.20115271,93.467,93.367,33.6]
[1773676300054,6.20115271,93.465,93.368,33.6]
[1773676300255,6.20115271,93.465,93.36,8.72105877]
[1773676300455,6.20115271,93.464,93.358,33.6]
[1773676301342,6.20115271,93.464,93.359,33.6]
[1773676302754,6.20115271,93.464,93.37,8.72383661]
[1773676303858,6.25937428,93.483,93.41,8.72383661]
[1773676304156,6.25937428,93.501,93.41,42.32383661]
[1773676305061,6.25937428,93.501,93.413,19.62711032]
[1773676305362,6.25937428,93.501,93.41,42.32383661]
[1773676305860,6.25937428,93.501,93.41,8.72383661]
[1773676306062,6.25937428,93.501,93.411,33.6]
[1773676306263,6.25937428,93.501,93.412,33.6]
[1773676306452,6.25937428,93.501,93.413,33.6]
[1773676307263,6.25937428,93.501,93.41,8.72383661]
[1773676307464,6.30670105,93.499,93.39,8.72383661]
[1773676307658,8.72383661,93.5,93.391,33.6]
[1773676307659,6.30450226,93.497,93.391,33.6]
[1773676307858,6.30450226,93.496,93.389,33.6]
[1773676308659,6.30441979,93.479,93.37,8.72383661]
[1773676309157,8.72383661,93.48,93.335,19.282]
[1773676309158,6.30441979,93.477,93.371,33.6]
[1773676309361,6.30441979,93.476,93.371,33.6]
[1773676309964,6.3007777,93.459,93.371,33.6]
[1773676310756,6.3007777,93.459,93.347,19.62711032]
[1773676310757,6.3007777,93.459,93.355,33.6]
[1773676314074,6.3007777,93.459,93.345,19.62711032]
[1773676314271,9.94051166,93.489,93.341,1.86305477]
[1773676314272,6.28664795,93.449,93.346,33.62]
[1773676314472,6.28664795,93.449,93.341,1.86305477]
[1773676314473,6.28664795,93.447,93.347,33.62]
[1773676315671,6.28664795,93.447,93.341,1.86305477]
[1773676315872,6.28664795,93.447,93.342,33.62]